[Event "Early-Titled-Tuesday-Blitz-January-16-2024"]
[Site "Chess.com"]
[Date "2024.01.16"]
[Round "10"]
[White "chenxiaoyuer"]
[Black "bancsoo"]
[Result "1-0"]
[WhiteElo "2768"]
[BlackElo "2919"]
[TimeControl "180+1"]
[EndTime "9:56:14 PST"]
[Termination "chenxiaoyuer won by resignation"]

1. e4 {[%clk 0:02:50.5]} 1... e5 {[%clk 0:02:59.9]} 2. Nf3 {[%clk 0:02:50.1]}
2... d6 {[%clk 0:03:00.6]} 3. d4 {[%clk 0:02:49.2]} 3... exd4 {[%clk 0:03:00.8]}
4. Nxd4 {[%clk 0:02:50.1]} 4... Nf6 {[%clk 0:03:01.5]} 5. Nc3 {[%clk 0:02:50.1]}
5... Be7 {[%clk 0:03:01.9]} 6. g3 {[%clk 0:02:47.6]} 6... O-O {[%clk 0:03:02.2]}
7. Bg2 {[%clk 0:02:48]} 7... Re8 {[%clk 0:03:02.9]} 8. O-O {[%clk 0:02:47.9]}
8... Bf8 {[%clk 0:03:03.5]} 9. b3 {[%clk 0:02:43.2]} 9... c6 {[%clk 0:03:03.7]}
10. Bb2 {[%clk 0:02:39.7]} 10... a5 {[%clk 0:03:04]} 11. Qd2 {[%clk 0:02:31.7]}
11... a4 {[%clk 0:02:58.8]} 12. Rad1 {[%clk 0:02:08.3]} 12... Nbd7 {[%clk
0:02:56.7]} 13. Nf5 {[%clk 0:02:04.9]} 13... axb3 {[%clk 0:02:26]} 14. axb3
{[%clk 0:02:02.5]} 14... Ne5 {[%clk 0:02:17.7]} 15. Nxd6 {[%clk 0:02:00.9]}
15... Bxd6 {[%clk 0:02:16.2]} 16. Qxd6 {[%clk 0:02:01.4]} 16... Qxd6 {[%clk
0:01:23.1]} 17. Rxd6 {[%clk 0:02:01.6]} 17... h5 {[%clk 0:00:57.3]} 18. h3
{[%clk 0:01:55.1]} 18... Ng6 {[%clk 0:00:50.9]} 19. f4 {[%clk 0:01:54.1]} 19...
h4 {[%clk 0:00:35.1]} 20. g4 {[%clk 0:01:51.4]} 20... Ra5 {[%clk 0:00:23.4]} 21.
e5 {[%clk 0:01:49.7]} 21... Nh7 {[%clk 0:00:23.4]} 22. Na4 {[%clk 0:01:41.2]}
22... Nhf8 {[%clk 0:00:22.6]} 23. Bc1 {[%clk 0:01:37.1]} 23... Ra6 {[%clk
0:00:14.7]} 24. Rfd1 {[%clk 0:01:36]} 24... Ra8 {[%clk 0:00:11]} 25. Rd8 {[%clk
0:01:32.8]} 25... Rxd8 {[%clk 0:00:07]} 26. Rxd8 {[%clk 0:01:32.3]} 26... Ne7
{[%clk 0:00:07.3]} 27. Ba3 {[%clk 0:01:30.3]} 1-0

[Event "Early-Titled-Tuesday-Blitz-January-16-2024"]
[Site "Chess.com"]
[Date "2024.01.16"]
[Round "10"]
[White "Bushonica"]
[Black "Darkbluelord"]
[Result "0-1"]
[WhiteElo "1816"]
[BlackElo "2170"]
[TimeControl "180+1"]
[EndTime "9:56:24 PST"]
[Termination "Darkbluelord won by resignation"]

1. e4 {[%clk 0:01:59.8]} 1... c5 {[%clk 0:02:59.4]} 2. Nf3 {[%clk 0:01:59.4]}
2... d6 {[%clk 0:02:59.2]} 3. d4 {[%clk 0:01:59.3]} 3... cxd4 {[%clk 0:03:00.1]}
4. Nxd4 {[%clk 0:01:57.4]} 4... Nf6 {[%clk 0:02:59.7]} 5. Nc3 {[%clk 0:01:55.6]}
5... g6 {[%clk 0:03:00.1]} 6. Be3 {[%clk 0:01:54]} 6... Bg7 {[%clk 0:03:00.6]}
7. Be2 {[%clk 0:01:53.3]} 7... O-O {[%clk 0:03:01.1]} 8. O-O {[%clk 0:01:52.9]}
8... Nc6 {[%clk 0:03:01.3]} 9. Nb3 {[%clk 0:01:47.7]} 9... a6 {[%clk 0:03:01.2]}
10. a4 {[%clk 0:01:47.4]} 10... Be6 {[%clk 0:03:00.9]} 11. Nd4 {[%clk
0:01:43.1]} 11... Bd7 {[%clk 0:02:54.4]} 12. Kh1 {[%clk 0:01:40.7]} 12... Rc8
{[%clk 0:02:54.4]} 13. f4 {[%clk 0:01:37.7]} 13... Ng4 {[%clk 0:02:35]} 14. Bxg4
{[%clk 0:01:11.3]} 14... Bxd4 {[%clk 0:02:30]} 15. Bxd4 {[%clk 0:01:09.5]} 15...
Bxg4 {[%clk 0:02:29.8]} 16. Qxg4 {[%clk 0:01:06.1]} 16... Nxd4 {[%clk
0:02:29.6]} 17. f5 {[%clk 0:01:06.4]} 17... Nxc2 {[%clk 0:02:23.6]} 18. fxg6
{[%clk 0:01:05.7]} 18... hxg6 {[%clk 0:02:20.9]} 19. Nd5 {[%clk 0:00:51.5]}
19... Nxa1 {[%clk 0:02:10]} 20. Rxa1 {[%clk 0:00:45.7]} 20... e6 {[%clk
0:02:07.3]} 21. Nf4 {[%clk 0:00:43.5]} 21... Qf6 {[%clk 0:02:00.2]} 22. Nh5
{[%clk 0:00:42.6]} 22... Qxb2 {[%clk 0:01:56.2]} 23. Rg1 {[%clk 0:00:41.5]}
23... Rc1 {[%clk 0:01:46.6]} 24. Nf6+ {[%clk 0:00:39.4]} 24... Kg7 {[%clk
0:01:44.9]} 25. Nh5+ {[%clk 0:00:38.8]} 25... Kh8 {[%clk 0:01:35.5]} 26. Ng3
{[%clk 0:00:29.7]} 26... Rxg1+ {[%clk 0:01:35.1]} 27. Kxg1 {[%clk 0:00:28.8]}
27... Qc1+ {[%clk 0:01:31.9]} 28. Nf1 {[%clk 0:00:28.6]} 28... Kg7 {[%clk
0:01:29.6]} 29. Qf3 {[%clk 0:00:24.2]} 29... Rc8 {[%clk 0:01:24]} 30. e5 {[%clk
0:00:23.6]} 30... dxe5 {[%clk 0:01:20.4]} 31. Qxb7 {[%clk 0:00:23.7]} 31... Qc5+
{[%clk 0:01:18.4]} 32. Kh1 {[%clk 0:00:22.3]} 32... Qf2 {[%clk 0:01:14.4]} 0-1

[Event "Early-Titled-Tuesday-Blitz-January-16-2024"]
[Site "Chess.com"]
[Date "2024.01.16"]
[Round "10"]
[White "tteshan"]
[Black "Legendinunknown"]
[Result "0-1"]
[WhiteElo "2608"]
[BlackElo "2819"]
[TimeControl "180+1"]
[EndTime "9:56:28 PST"]
[Termination "Legendinunknown won by resignation"]

1. e4 {[%clk 0:03:00.9]} 1... e5 {[%clk 0:02:59.3]} 2. Nf3 {[%clk 0:03:00.8]}
2... Nc6 {[%clk 0:03:00]} 3. Bb5 {[%clk 0:03:00.9]} 3... a6 {[%clk 0:02:55.8]}
4. Ba4 {[%clk 0:03:01.2]} 4... d6 {[%clk 0:02:56.4]} 5. O-O {[%clk 0:02:58.5]}
5... Bg4 {[%clk 0:02:56]} 6. h3 {[%clk 0:02:55.9]} 6... h5 {[%clk 0:02:56.4]} 7.
Bxc6+ {[%clk 0:02:43]} 7... bxc6 {[%clk 0:02:55.3]} 8. c4 {[%clk 0:02:43.4]}
8... Qf6 {[%clk 0:02:54.8]} 9. Nc3 {[%clk 0:02:41.8]} 9... Ne7 {[%clk
0:02:54.2]} 10. d3 {[%clk 0:02:39]} 10... Bxf3 {[%clk 0:02:52.9]} 11. Qxf3
{[%clk 0:02:38.4]} 11... Qxf3 {[%clk 0:02:52.9]} 12. gxf3 {[%clk 0:02:39.3]}
12... g5 {[%clk 0:02:53.7]} 13. Ne2 {[%clk 0:02:14.8]} 13... f6 {[%clk
0:02:52.7]} 14. Rd1 {[%clk 0:02:09.5]} 14... Ng6 {[%clk 0:02:51.6]} 15. Kf1
{[%clk 0:02:04]} 15... c5 {[%clk 0:02:49.4]} 16. b3 {[%clk 0:02:02.2]} 16... Nh4
{[%clk 0:02:48.2]} 17. Ng1 {[%clk 0:02:02]} 17... Be7 {[%clk 0:02:48.1]} 18. Be3
{[%clk 0:02:00.8]} 18... O-O {[%clk 0:02:46.2]} 19. Bd2 {[%clk 0:01:52.1]} 19...
Rf7 {[%clk 0:02:42.7]} 20. Ba5 {[%clk 0:01:50.3]} 20... c6 {[%clk 0:02:41]} 21.
Ke2 {[%clk 0:01:43.5]} 21... Raf8 {[%clk 0:02:39.4]} 22. Rf1 {[%clk 0:01:40.6]}
22... f5 {[%clk 0:02:38.4]} 23. Be1 {[%clk 0:01:13.2]} 23... Kh7 {[%clk
0:02:34.7]} 24. a3 {[%clk 0:01:11.8]} 24... Ng6 {[%clk 0:02:09.8]} 25. Bd2
{[%clk 0:01:10.9]} 25... g4 {[%clk 0:02:06.3]} 26. exf5 {[%clk 0:00:53.7]} 26...
gxf3+ {[%clk 0:02:05.2]} 27. Nxf3 {[%clk 0:00:54.6]} 27... Rxf5 {[%clk
0:02:05.5]} 28. Ng1 {[%clk 0:00:50]} 28... d5 {[%clk 0:02:04.4]} 29. Rac1 {[%clk
0:00:37.4]} 29... Bh4 {[%clk 0:02:02.6]} 30. f3 {[%clk 0:00:31]} 30... d4 {[%clk
0:01:54.9]} 31. b4 {[%clk 0:00:27.2]} 31... cxb4 {[%clk 0:01:54.7]} 32. axb4
{[%clk 0:00:28.1]} 32... Bg5 {[%clk 0:01:54.6]} 33. Ra1 {[%clk 0:00:22.5]} 33...
Bf4 {[%clk 0:01:40.8]} 34. Rxa6 {[%clk 0:00:20.6]} 34... Rg5 {[%clk 0:01:41.2]}
35. Be1 {[%clk 0:00:11.2]} 35... Be3 {[%clk 0:01:38.3]} 36. Bf2 {[%clk
0:00:10.8]} 36... Nf4+ {[%clk 0:01:37.3]} 37. Kd1 {[%clk 0:00:07.4]} 37... Bxf2
{[%clk 0:01:37.3]} 0-1

[Event "Early-Titled-Tuesday-Blitz-January-16-2024"]
[Site "Chess.com"]
[Date "2024.01.16"]
[Round "10"]
[White "Gabrielian_Artur"]
[Black "HajiyevKanan"]
[Result "1-0"]
[WhiteElo "2786"]
[BlackElo "2569"]
[TimeControl "180+1"]
[EndTime "9:56:32 PST"]
[Termination "Gabrielian_Artur won by resignation"]

1. d4 {[%clk 0:03:00.9]} 1... d5 {[%clk 0:02:56.9]} 2. c4 {[%clk 0:03:00.1]}
2... c6 {[%clk 0:02:57.4]} 3. Nf3 {[%clk 0:02:59.7]} 3... Nf6 {[%clk 0:02:57.9]}
4. Nbd2 {[%clk 0:02:58.7]} 4... a6 {[%clk 0:02:58.7]} 5. e3 {[%clk 0:02:57.3]}
5... Bf5 {[%clk 0:02:57.6]} 6. Be2 {[%clk 0:02:57]} 6... e6 {[%clk 0:02:58.1]}
7. O-O {[%clk 0:02:54.5]} 7... Bd6 {[%clk 0:02:57.1]} 8. Qb3 {[%clk 0:02:52.2]}
8... b5 {[%clk 0:02:56.7]} 9. cxd5 {[%clk 0:02:46.8]} 9... cxd5 {[%clk
0:02:56.2]} 10. a4 {[%clk 0:02:47]} 10... b4 {[%clk 0:02:56.5]} 11. Nh4 {[%clk
0:02:41.5]} 11... Bg4 {[%clk 0:02:50.7]} 12. Bd3 {[%clk 0:02:29]} 12... O-O
{[%clk 0:02:30.3]} 13. Nhf3 {[%clk 0:02:16.8]} 13... Nc6 {[%clk 0:02:29.1]} 14.
h3 {[%clk 0:02:14.6]} 14... Bh5 {[%clk 0:02:28.2]} 15. Re1 {[%clk 0:02:14.1]}
15... Bg6 {[%clk 0:02:25.7]} 16. Bxg6 {[%clk 0:02:12.9]} 16... hxg6 {[%clk
0:02:26.6]} 17. Qd3 {[%clk 0:02:10.5]} 17... Na5 {[%clk 0:02:12.1]} 18. b3
{[%clk 0:02:10.4]} 18... Qb6 {[%clk 0:02:07.8]} 19. Bb2 {[%clk 0:02:10.4]} 19...
Rfc8 {[%clk 0:02:07.9]} 20. Rac1 {[%clk 0:02:06.4]} 20... Ne4 {[%clk 0:01:59.8]}
21. Rc2 {[%clk 0:01:56.7]} 21... Rxc2 {[%clk 0:01:42.2]} 22. Qxc2 {[%clk
0:01:56.3]} 22... Nxd2 {[%clk 0:01:34]} 23. Nxd2 {[%clk 0:01:55]} 23... Qc7
{[%clk 0:01:34.1]} 24. Qd3 {[%clk 0:01:49.4]} 24... Qb6 {[%clk 0:01:21.7]} 25.
Rc1 {[%clk 0:01:48.4]} 25... Rd8 {[%clk 0:01:18.6]} 26. Qc2 {[%clk 0:01:45]}
26... Rb8 {[%clk 0:01:14.6]} 27. g3 {[%clk 0:01:42.8]} 27... Rd8 {[%clk
0:01:13.3]} 28. Kg2 {[%clk 0:01:42.5]} 28... Rb8 {[%clk 0:01:13.6]} 29. h4
{[%clk 0:01:41.2]} 29... Rd8 {[%clk 0:01:13.1]} 30. Rh1 {[%clk 0:01:31.4]} 30...
Qc7 {[%clk 0:01:10.9]} 31. Qd3 {[%clk 0:01:30.8]} 31... Qb6 {[%clk 0:01:10.7]}
32. h5 {[%clk 0:01:30.7]} 32... gxh5 {[%clk 0:01:10.6]} 33. Rxh5 {[%clk
0:01:30.9]} 33... g6 {[%clk 0:01:11.3]} 34. Rh1 {[%clk 0:01:30.2]} 34... Rc8
{[%clk 0:01:11.2]} 35. e4 {[%clk 0:01:28.6]} 35... dxe4 {[%clk 0:01:08.8]} 36.
Nxe4 {[%clk 0:01:26.4]} 36... Kg7 {[%clk 0:00:27.5]} 37. Qe3 {[%clk 0:01:16.3]}
37... Rh8 {[%clk 0:00:24.3]} 38. d5+ {[%clk 0:01:15.7]} 1-0

[Event "Early-Titled-Tuesday-Blitz-January-16-2024"]
[Site "Chess.com"]
[Date "2024.01.16"]
[Round "10"]
[White "FranciscodelaF"]
[Black "LangesNasenhaar"]
[Result "0-1"]
[WhiteElo "2247"]
[BlackElo "2411"]
[TimeControl "180+1"]
[EndTime "9:56:36 PST"]
[Termination "LangesNasenhaar won on time"]

1. d4 {[%clk 0:03:00.9]} 1... g6 {[%clk 0:02:59.7]} 2. Nf3 {[%clk 0:03:00.1]}
2... Bg7 {[%clk 0:03:00.3]} 3. Bf4 {[%clk 0:02:59.8]} 3... d6 {[%clk 0:02:59]}
4. e3 {[%clk 0:02:59.3]} 4... Nd7 {[%clk 0:02:59.5]} 5. Nbd2 {[%clk 0:02:58.1]}
5... e5 {[%clk 0:02:59.5]} 6. Bg3 {[%clk 0:02:55.8]} 6... Nh6 {[%clk 0:02:58.5]}
7. c3 {[%clk 0:02:40.9]} 7... Nf5 {[%clk 0:02:53.9]} 8. Bd3 {[%clk 0:02:31.3]}
8... Nxg3 {[%clk 0:02:53.1]} 9. hxg3 {[%clk 0:02:30.7]} 9... exd4 {[%clk
0:02:47.8]} 10. cxd4 {[%clk 0:02:25.4]} 10... O-O {[%clk 0:02:45.3]} 11. O-O
{[%clk 0:02:21.8]} 11... c5 {[%clk 0:02:41.8]} 12. Qc2 {[%clk 0:02:07.2]} 12...
b6 {[%clk 0:02:41]} 13. Rad1 {[%clk 0:02:03.1]} 13... Qe7 {[%clk 0:02:35.2]} 14.
Rfe1 {[%clk 0:01:36.7]} 14... Bb7 {[%clk 0:02:32.1]} 15. Bb5 {[%clk 0:01:21.9]}
15... Rfd8 {[%clk 0:02:20.4]} 16. Qb3 {[%clk 0:00:55.5]} 16... d5 {[%clk
0:02:10.4]} 17. Rc1 {[%clk 0:00:36.1]} 17... c4 {[%clk 0:02:05.8]} 18. Qd1
{[%clk 0:00:33.4]} 18... a6 {[%clk 0:01:58]} 19. Ba4 {[%clk 0:00:29.8]} 19... b5
{[%clk 0:01:54.8]} 20. Bc2 {[%clk 0:00:28.9]} 20... f5 {[%clk 0:01:54.1]} 21.
Bb1 {[%clk 0:00:25.5]} 21... b4 {[%clk 0:01:52]} 22. Nf1 {[%clk 0:00:18]} 22...
a5 {[%clk 0:01:47.3]} 23. Qe2 {[%clk 0:00:17.4]} 23... a4 {[%clk 0:01:44.7]} 24.
Qd1 {[%clk 0:00:16.6]} 24... Bc6 {[%clk 0:01:38.6]} 25. Qe2 {[%clk 0:00:12.4]}
25... Bb5 {[%clk 0:01:38.3]} 26. Qd1 {[%clk 0:00:10.9]} 26... a3 {[%clk
0:01:32.3]} 27. b3 {[%clk 0:00:05.1]} 27... cxb3 {[%clk 0:01:20.8]} 28. Qxb3
{[%clk 0:00:03.7]} 28... Bc4 {[%clk 0:01:13.3]} 0-1

[Event "Early-Titled-Tuesday-Blitz-January-16-2024"]
[Site "Chess.com"]
[Date "2024.01.16"]
[Round "10"]
[White "brm72"]
[Black "maciek_92"]
[Result "1-0"]
[WhiteElo "2715"]
[BlackElo "2839"]
[TimeControl "180+1"]
[EndTime "9:56:48 PST"]
[Termination "brm72 won on time"]

1. e4 {[%clk 0:03:00.9]} 1... c5 {[%clk 0:02:56.2]} 2. Nf3 {[%clk 0:03:00.8]}
2... e6 {[%clk 0:02:53.3]} 3. d4 {[%clk 0:03:00.6]} 3... cxd4 {[%clk 0:02:54.2]}
4. Nxd4 {[%clk 0:03:01.4]} 4... Nc6 {[%clk 0:02:54.6]} 5. Nc3 {[%clk 0:03:01.5]}
5... a6 {[%clk 0:02:55.1]} 6. Nxc6 {[%clk 0:02:59.4]} 6... bxc6 {[%clk 0:02:56]}
7. Bd3 {[%clk 0:02:59.7]} 7... d5 {[%clk 0:02:56.6]} 8. O-O {[%clk 0:02:59.8]}
8... Nf6 {[%clk 0:02:57.3]} 9. Re1 {[%clk 0:03:00]} 9... Be7 {[%clk 0:02:57.2]}
10. e5 {[%clk 0:02:59.1]} 10... Nd7 {[%clk 0:02:57.5]} 11. Qg4 {[%clk 0:02:59]}
11... Kf8 {[%clk 0:02:58.2]} 12. Bd2 {[%clk 0:02:42.2]} 12... Rb8 {[%clk
0:02:44.4]} 13. Na4 {[%clk 0:02:41]} 13... Qc7 {[%clk 0:02:33.9]} 14. Qf4 {[%clk
0:02:27.5]} 14... g5 {[%clk 0:02:16.1]} 15. Qg3 {[%clk 0:02:22.5]} 15... h6
{[%clk 0:02:14.8]} 16. b3 {[%clk 0:02:19.5]} 16... f5 {[%clk 0:01:35.6]} 17.
exf6 {[%clk 0:02:13.5]} 17... Bd6 {[%clk 0:01:35.7]} 18. Qh3 {[%clk 0:02:07.1]}
18... Nxf6 {[%clk 0:00:52.4]} 19. Bxg5 {[%clk 0:02:06.2]} 19... Ng8 {[%clk
0:00:51.9]} 20. Bh4 {[%clk 0:01:56.1]} 20... e5 {[%clk 0:00:36.3]} 21. Bf5
{[%clk 0:01:55.8]} 21... Bxf5 {[%clk 0:00:36]} 22. Qxf5+ {[%clk 0:01:56.7]}
22... Qf7 {[%clk 0:00:36.5]} 23. Qh3 {[%clk 0:01:50]} 23... Re8 {[%clk
0:00:33.9]} 24. Rad1 {[%clk 0:01:39]} 24... Ne7 {[%clk 0:00:24.6]} 25. c4 {[%clk
0:01:22.9]} 25... Nf5 {[%clk 0:00:07.3]} 26. cxd5 {[%clk 0:01:18.1]} 26... cxd5
{[%clk 0:00:08.2]} 27. Rxd5 {[%clk 0:01:12.2]} 27... Qxd5 {[%clk 0:00:07.9]} 28.
Qxf5+ {[%clk 0:01:12.4]} 28... Qf7 {[%clk 0:00:08.8]} 29. Qd3 {[%clk 0:01:10.6]}
29... Re6 {[%clk 0:00:06.3]} 30. Re3 {[%clk 0:01:09.5]} 30... Ke8 {[%clk
0:00:04.1]} 31. Qd5 {[%clk 0:01:05.3]} 1-0

[Event "Early-Titled-Tuesday-Blitz-January-16-2024"]
[Site "Chess.com"]
[Date "2024.01.16"]
[Round "10"]
[White "crazy_m_attack"]
[Black "Alexchess1984"]
[Result "0-1"]
[WhiteElo "2488"]
[BlackElo "2685"]
[TimeControl "180+1"]
[EndTime "9:56:48 PST"]
[Termination "Alexchess1984 won by resignation"]

1. e4 {[%clk 0:03:00.9]} 1... c5 {[%clk 0:02:59.5]} 2. Nf3 {[%clk 0:03:00.4]}
2... Nc6 {[%clk 0:02:58.9]} 3. d4 {[%clk 0:03:00.9]} 3... cxd4 {[%clk
0:02:59.8]} 4. Nxd4 {[%clk 0:03:01.5]} 4... Nf6 {[%clk 0:03:00.4]} 5. Nc3 {[%clk
0:03:02.1]} 5... e5 {[%clk 0:03:00.4]} 6. Ndb5 {[%clk 0:03:02.7]} 6... d6 {[%clk
0:02:59.5]} 7. Nd5 {[%clk 0:03:03.1]} 7... Nxd5 {[%clk 0:02:58.2]} 8. exd5
{[%clk 0:03:04]} 8... Nb8 {[%clk 0:02:58.7]} 9. a4 {[%clk 0:03:04.4]} 9... Be7
{[%clk 0:02:57.8]} 10. Be2 {[%clk 0:03:04.8]} 10... O-O {[%clk 0:02:58.2]} 11.
Bd2 {[%clk 0:03:05.2]} 11... Bf5 {[%clk 0:02:55.5]} 12. a5 {[%clk 0:03:04.4]}
12... Nd7 {[%clk 0:02:55.1]} 13. Bb4 {[%clk 0:03:03.4]} 13... Nf6 {[%clk
0:02:50.8]} 14. O-O {[%clk 0:02:59.4]} 14... a6 {[%clk 0:02:50.2]} 15. Na3
{[%clk 0:02:59.3]} 15... Rc8 {[%clk 0:02:50.7]} 16. c4 {[%clk 0:02:59.4]} 16...
Qd7 {[%clk 0:02:35.1]} 17. Rc1 {[%clk 0:02:50]} 17... g6 {[%clk 0:02:20.8]} 18.
Bd2 {[%clk 0:02:48.1]} 18... Ne4 {[%clk 0:02:18.4]} 19. Be3 {[%clk 0:02:48.2]}
19... h6 {[%clk 0:02:16.1]} 20. b4 {[%clk 0:02:47.8]} 20... h5 {[%clk
0:02:14.3]} 21. f3 {[%clk 0:02:44.3]} 21... Nf6 {[%clk 0:02:11.5]} 22. Qd2
{[%clk 0:02:43]} 22... e4 {[%clk 0:02:08.9]} 23. Bd4 {[%clk 0:02:39.3]} 23...
exf3 {[%clk 0:02:08.2]} 24. Bxf3 {[%clk 0:02:38.8]} 24... Ng4 {[%clk 0:02:02]}
25. Bxg4 {[%clk 0:02:34.5]} 25... hxg4 {[%clk 0:02:02.3]} 26. Qh6 {[%clk
0:02:31.8]} 26... f6 {[%clk 0:02:02.8]} 27. Rce1 {[%clk 0:02:26.5]} 27... Rf7
{[%clk 0:02:02.4]} 28. Qe3 {[%clk 0:02:08.1]} 28... Bf8 {[%clk 0:01:56]} 29. Bb2
{[%clk 0:02:01.3]} 29... Kg7 {[%clk 0:01:39.2]} 30. Qd4 {[%clk 0:01:59.9]} 30...
Re8 {[%clk 0:01:33.6]} 31. Bc3 {[%clk 0:01:56.6]} 31... Re5 {[%clk 0:01:15.4]}
32. Rxe5 {[%clk 0:01:34.2]} 32... dxe5 {[%clk 0:01:16]} 33. Qd2 {[%clk
0:01:32.7]} 33... Qa4 {[%clk 0:01:00.4]} 34. Qb2 {[%clk 0:01:32.4]} 34... Rd7
{[%clk 0:00:56.9]} 35. Nb1 {[%clk 0:01:22.2]} 35... Qc2 {[%clk 0:00:53.8]} 36.
Qxc2 {[%clk 0:01:20.7]} 36... Bxc2 {[%clk 0:00:53.4]} 37. Nd2 {[%clk 0:01:21]}
37... Bd3 {[%clk 0:00:52.3]} 38. Re1 {[%clk 0:01:19.1]} 38... Kf7 {[%clk
0:00:49.3]} 39. Kf2 {[%clk 0:01:13]} 39... Bh6 {[%clk 0:00:47.9]} 40. Ne4 {[%clk
0:01:01.3]} 40... Bxc4 {[%clk 0:00:45.3]} 41. d6 {[%clk 0:01:01.4]} 41... Bd5
{[%clk 0:00:43.5]} 42. Nc5 {[%clk 0:00:55.8]} 42... Rxd6 {[%clk 0:00:43.3]} 43.
Nxb7 {[%clk 0:00:56.2]} 43... Bxb7 {[%clk 0:00:43]} 0-1

[Event "Early-Titled-Tuesday-Blitz-January-16-2024"]
[Site "Chess.com"]
[Date "2024.01.16"]
[Round "10"]
[White "Makswolf200817"]
[Black "Barmen_EV"]
[Result "1-0"]
[WhiteElo "2668"]
[BlackElo "2528"]
[TimeControl "180+1"]
[EndTime "9:56:52 PST"]
[Termination "Makswolf200817 won on time"]

1. e4 {[%clk 0:03:00.9]} 1... c5 {[%clk 0:02:59.2]} 2. Nf3 {[%clk 0:02:59.9]}
2... Nc6 {[%clk 0:02:58.1]} 3. Bb5 {[%clk 0:02:59.2]} 3... e5 {[%clk 0:02:57.7]}
4. O-O {[%clk 0:02:58.5]} 4... Bd6 {[%clk 0:02:56]} 5. d3 {[%clk 0:02:49]} 5...
Nge7 {[%clk 0:02:50.5]} 6. a4 {[%clk 0:02:45.5]} 6... Bc7 {[%clk 0:02:45.2]} 7.
Nc3 {[%clk 0:02:44.5]} 7... d6 {[%clk 0:02:38.9]} 8. Bg5 {[%clk 0:02:40]} 8...
f6 {[%clk 0:02:38]} 9. Bh4 {[%clk 0:02:40]} 9... Be6 {[%clk 0:02:34.5]} 10. Bc4
{[%clk 0:02:37.3]} 10... Qd7 {[%clk 0:02:15.2]} 11. Nd2 {[%clk 0:02:33.6]} 11...
O-O-O {[%clk 0:02:09]} 12. Bxe6 {[%clk 0:02:29.3]} 12... Qxe6 {[%clk 0:02:09.3]}
13. Nc4 {[%clk 0:02:29.9]} 13... g5 {[%clk 0:02:05.3]} 14. Bg3 {[%clk 0:02:30]}
14... h5 {[%clk 0:02:05.6]} 15. f3 {[%clk 0:02:27.8]} 15... h4 {[%clk
0:01:55.9]} 16. Bf2 {[%clk 0:02:26.7]} 16... Rdg8 {[%clk 0:01:39.2]} 17. Ne3
{[%clk 0:02:22.7]} 17... f5 {[%clk 0:01:28.3]} 18. Ncd5 {[%clk 0:02:13]} 18...
Bd8 {[%clk 0:01:01.6]} 19. c3 {[%clk 0:02:03.6]} 19... g4 {[%clk 0:00:54]} 20.
Nxe7+ {[%clk 0:02:00.1]} 20... Nxe7 {[%clk 0:00:53.9]} 21. exf5 {[%clk
0:02:00.2]} 21... Nxf5 {[%clk 0:00:54.8]} 22. Nxg4 {[%clk 0:02:00.8]} 22... h3
{[%clk 0:00:46.7]} 23. g3 {[%clk 0:01:58.1]} 23... Nh6 {[%clk 0:00:39.7]} 24.
Nxh6 {[%clk 0:01:53.6]} 24... Rxh6 {[%clk 0:00:40.6]} 25. Re1 {[%clk 0:01:52.1]}
25... Rhg6 {[%clk 0:00:38.1]} 26. d4 {[%clk 0:01:51.1]} 26... Bb6 {[%clk
0:00:11.7]} 27. dxe5 {[%clk 0:01:50.3]} 27... d5 {[%clk 0:00:12]} 28. a5 {[%clk
0:01:50.2]} 28... Bc7 {[%clk 0:00:10.7]} 29. Bxc5 {[%clk 0:01:50]} 29... Qc6
{[%clk 0:00:08.1]} 30. Bf2 {[%clk 0:01:49.8]} 30... d4 {[%clk 0:00:06.4]} 31.
cxd4 {[%clk 0:01:49.4]} 31... Qd5 {[%clk 0:00:07.1]} 32. Rc1 {[%clk 0:01:47.1]}
32... Kb8 {[%clk 0:00:05.5]} 33. Rc5 {[%clk 0:01:46.2]} 33... Qa2 {[%clk
0:00:02.4]} 34. d5 {[%clk 0:01:43.6]} 34... Bxa5 {[%clk 0:00:02.4]} 35. d6
{[%clk 0:01:42.6]} 35... Bxe1 {[%clk 0:00:01.4]} 36. Bxe1 {[%clk 0:01:40.7]}
36... Qe6 {[%clk 0:00:02.2]} 37. f4 {[%clk 0:01:35.4]} 37... Qd7 {[%clk
0:00:02]} 38. Bf2 {[%clk 0:01:35.1]} 38... b6 {[%clk 0:00:01.4]} 39. Rc7 {[%clk
0:01:33.5]} 39... Qb5 {[%clk 0:00:02]} 40. Qf3 {[%clk 0:01:31.8]} 40... Qa6
{[%clk 0:00:01.8]} 41. Rc1 {[%clk 0:01:29.3]} 1-0

[Event "Early-Titled-Tuesday-Blitz-January-16-2024"]
[Site "Chess.com"]
[Date "2024.01.16"]
[Round "10"]
[White "pfalcon1949"]
[Black "KSho99"]
[Result "1-0"]
[WhiteElo "1994"]
[BlackElo "2168"]
[TimeControl "180+1"]
[EndTime "9:56:54 PST"]
[Termination "pfalcon1949 won by resignation"]

1. e4 {[%clk 0:01:30.1]} 1... c6 {[%clk 0:02:58.5]} 2. d4 {[%clk 0:01:28.9]}
2... d5 {[%clk 0:02:58.5]} 3. e5 {[%clk 0:01:29]} 3... Bf5 {[%clk 0:02:57.6]} 4.
h4 {[%clk 0:01:27.5]} 4... h5 {[%clk 0:02:57.1]} 5. Bg5 {[%clk 0:01:26.1]} 5...
Qb6 {[%clk 0:02:52]} 6. Bd3 {[%clk 0:01:25.1]} 6... Bxd3 {[%clk 0:02:43.9]} 7.
Qxd3 {[%clk 0:01:24.7]} 7... e6 {[%clk 0:02:40.2]} 8. Nd2 {[%clk 0:01:22.6]}
8... Qb5 {[%clk 0:02:33.8]} 9. c4 {[%clk 0:01:21.1]} 9... dxc4 {[%clk
0:02:28.1]} 10. Nxc4 {[%clk 0:01:20.5]} 10... Nh6 {[%clk 0:02:11.5]} 11. Nf3
{[%clk 0:01:11.6]} 11... Nf5 {[%clk 0:02:10.3]} 12. O-O {[%clk 0:01:08.8]} 12...
Nd7 {[%clk 0:02:05]} 13. a4 {[%clk 0:01:03.2]} 13... Qa6 {[%clk 0:02:02.3]} 14.
Nfd2 {[%clk 0:00:47]} 14... Bb4 {[%clk 0:01:49.3]} 15. Ne4 {[%clk 0:00:45]}
15... O-O {[%clk 0:01:29.6]} 16. b3 {[%clk 0:00:45.2]} 16... Nb6 {[%clk
0:01:15.4]} 17. Rad1 {[%clk 0:00:38.2]} 17... Be7 {[%clk 0:00:58.8]} 18. Bxe7
{[%clk 0:00:34.5]} 18... Nxe7 {[%clk 0:00:57.3]} 19. Qf3 {[%clk 0:00:30.2]}
19... Nxc4 {[%clk 0:00:54.2]} 20. bxc4 {[%clk 0:00:28.8]} 20... Qxc4 {[%clk
0:00:52.9]} 21. Qxh5 {[%clk 0:00:24.6]} 21... Ng6 {[%clk 0:00:42.6]} 22. Ng5
{[%clk 0:00:20.1]} 22... Rfd8 {[%clk 0:00:42.7]} 23. Qh7+ {[%clk 0:00:17.4]}
23... Kf8 {[%clk 0:00:43]} 24. h5 {[%clk 0:00:14.8]} 24... Nf4 {[%clk
0:00:32.8]} 25. Qh8+ {[%clk 0:00:12.3]} 25... Ke7 {[%clk 0:00:33.2]} 26. Qxg7
{[%clk 0:00:11.3]} 1-0